{"text_format":"3","workbook":"xlsx","n_sheets":2,"sheets":["РОБОТА З КНИГОЮ","ЖУРНАЛ УСПІШНОСТІ"],"not_rendered":{"defined_names":5},"read":"whole","date_system":"1900"}

{"sheet":"РОБОТА З КНИГОЮ","index":0,"n_rows":10,"n_cols":2,"rows_kept":10}
[null,"ІНСТРУКЦІЇ"]
[null,"Скористайтеся аркушем \"ЖУРНАЛ УСПІШНОСТІ\", щоб обчислювати оцінки. За кожне завдання дається певна кількість балів. "]
[null,"Інструкції. Обов’язково зберігайте резервні копії оцінок."]
[null,"1. Заповніть назву навчального закладу, відомості про заняття, імена учнів або студентів і їхні ідентифікатори (необов’язково).   "]
[null,"2. Внесіть у таблицю оцінок і середніх балів за всі курси зміни відповідно до системи оцінювання, яку ви використовуєте."]
[null,"3. Заповніть назви завдань або тестів, починаючи з клітинки G7, а також введіть відсоток, який дається за кожне із таких завдань (наприклад, \"Підсумковий тест\" і \"50%\"). "]
[null,"4. Внесіть оцінки кожного з учнів або слухачів за кожне завдання або тест. Стовпці \"Оцінка\", \"Літера оцінки\" та \"Середній бал за всі курси\" обчислюються автоматично, але за потреби ви можете внести власні значення. Оцінки обчислюються таким чином: середній бал і підсумкова оцінка не заповнюються, поки не внесено всі оцінки."]
[null,"Скористайтеся командою \"Область друку\" в меню \"Макет сторінки\", якщо потрібно змінити область друку."]
[null,"Значення \"Оцінка\", \"Літера оцінки\" та \"Середній бал за всі курси\" не обчислюватимуться, доки не заповнено 100% усіх тестів і завдань. "]
[null,"Введіть кожне завдання або тест і відповідний відсоток у клітинки від G7 до W8."]

{"sheet":"ЖУРНАЛ УСПІШНОСТІ","index":1,"n_rows":20,"n_cols":23,"rows_kept":20,"merged":[[5,1,5,5],[6,1,6,3],[6,4,6,5],[7,1,8,3],[7,4,7,5],[8,4,8,5],[15,1,15,5],[16,1,16,2],[17,1,17,2],[18,1,18,2],[19,1,19,2]]}
[null,"НАЗВА НАВЧАЛЬНОГО ЗАКЛАДУ"]
[]
[{"$nulls":6},"Оцінка",{"v":0,"d":"0%"},{"v":0.6,"d":"60%"},{"v":0.63,"d":"63%"},{"v":0.67,"d":"67%"},{"v":0.7,"d":"70%"},{"v":0.73,"d":"73%"},{"v":0.77,"d":"77%"},{"v":0.8,"d":"80%"},{"v":0.83,"d":"83%"},{"v":0.87,"d":"87%"},{"v":0.9,"d":"90%"},{"v":0.93,"d":"93%"},{"v":0.97,"d":"97%"}]
[{"$nulls":6},"Літера оцінки","1","2-","2","2+","3-","3","3+","4-","4","4+","5-","5","5+"]
[{"$nulls":6},"Середній бал за всі курси",0,0.67,1,1.33,1.67,2,2.33,2.67,3,3.33,3.67,4,4]
[null,"Ім’я викладача"]
[null,"Заняття/проект",null,null,"Назва завдання або тесту"]
[null,"Рік/семетр/чверть",null,null,"Відсоток (у сумі має дорівнювати 100%)"]
[{"$nulls":4},{"$f":"\"Загальний відсоток: \"&SUM(G8:W8)*100&\"%\"","v":"Загальний відсоток: 0%"}]
[null,"ПІБ учня","Ідентифікатор учня або студента","Оцінка","Літера оцінки","Середній бал за всі курси","Стовпець6","Стовпець7","Стовпець8","Стовпець9","Стовпець10","Стовпець11","Стовпець12","Стовпець13","Стовпець14","Стовпець15","Стовпець16","Стовпець17","Стовпець18","Стовпець19","Стовпець20","Стовпець21","Стовпець22"]
[{"$nulls":3},{"$f":"(IF(SUM(Оцінки[[#This Row],[Стовпець6]:[Стовпець22]]),ROUND(SUMPRODUCT($G$8:$W$8,Оцінки[[#This Row],[Стовпець6]:[Стовпець22]]),2),\"\"))","v":""},{"$f":"IF(Оцінки[[#This Row],[Оцінка]]<>\"\",HLOOKUP(Оцінки[[#This Row],[Оцінка]],ТаблицяОцінок,2),\"\")","v":""},{"$f":"IF(Оцінки[[#This Row],[Оцінка]]<>\"\",HLOOKUP(Оцінки[[#This Row],[Оцінка]],ТаблицяОцінок,3),\"\")","v":""}]
[{"$nulls":3},{"$f":"(IF(SUM(Оцінки[[#This Row],[Стовпець6]:[Стовпець22]]),ROUND(SUMPRODUCT($G$8:$W$8,Оцінки[[#This Row],[Стовпець6]:[Стовпець22]]),2),\"\"))","v":""},{"$f":"IF(Оцінки[[#This Row],[Оцінка]]<>\"\",HLOOKUP(Оцінки[[#This Row],[Оцінка]],ТаблицяОцінок,2),\"\")","v":""},{"$f":"IF(Оцінки[[#This Row],[Оцінка]]<>\"\",HLOOKUP(Оцінки[[#This Row],[Оцінка]],ТаблицяОцінок,3),\"\")","v":""}]
[{"$nulls":3},{"$f":"(IF(SUM(Оцінки[[#This Row],[Стовпець6]:[Стовпець22]]),ROUND(SUMPRODUCT($G$8:$W$8,Оцінки[[#This Row],[Стовпець6]:[Стовпець22]]),2),\"\"))","v":""},{"$f":"IF(Оцінки[[#This Row],[Оцінка]]<>\"\",HLOOKUP(Оцінки[[#This Row],[Оцінка]],ТаблицяОцінок,2),\"\")","v":""},{"$f":"IF(Оцінки[[#This Row],[Оцінка]]<>\"\",HLOOKUP(Оцінки[[#This Row],[Оцінка]],ТаблицяОцінок,3),\"\")","v":""}]
[{"$nulls":3},{"$f":"(IF(SUM(Оцінки[[#This Row],[Стовпець6]:[Стовпець22]]),ROUND(SUMPRODUCT($G$8:$W$8,Оцінки[[#This Row],[Стовпець6]:[Стовпець22]]),2),\"\"))","v":""},{"$f":"IF(Оцінки[[#This Row],[Оцінка]]<>\"\",HLOOKUP(Оцінки[[#This Row],[Оцінка]],ТаблицяОцінок,2),\"\")","v":""},{"$f":"IF(Оцінки[[#This Row],[Оцінка]]<>\"\",HLOOKUP(Оцінки[[#This Row],[Оцінка]],ТаблицяОцінок,3),\"\")","v":""}]
[{"$nulls":3},{"$f":"(IF(SUM(Оцінки[[#This Row],[Стовпець6]:[Стовпець22]]),ROUND(SUMPRODUCT($G$8:$W$8,Оцінки[[#This Row],[Стовпець6]:[Стовпець22]]),2),\"\"))","v":""},{"$f":"IF(Оцінки[[#This Row],[Оцінка]]<>\"\",HLOOKUP(Оцінки[[#This Row],[Оцінка]],ТаблицяОцінок,2),\"\")","v":""},{"$f":"IF(Оцінки[[#This Row],[Оцінка]]<>\"\",HLOOKUP(Оцінки[[#This Row],[Оцінка]],ТаблицяОцінок,3),\"\")","v":""}]
[]
[null,"Зведення заняття",null,"Оцінка","Літера оцінки","Середній бал за всі курси","","","","","","","","","","",""]
[null," Середнє",null,{"$f":"IFERROR(AVERAGE(Оцінки[[#All],[Оцінка]]),0)","v":{"v":0,"d":"0.0%"}},{"$f":"IFERROR(HLOOKUP(D18,ТаблицяОцінок,2),\"\")","v":"1"},{"$f":"IFERROR(AVERAGE(Оцінки[[#All],[Середній бал за всі курси]]),0)","v":0},"","","","","","","","","","","","","","","","",""]
[null," Найвища оцінка",null,{"$f":"IFERROR(MAX(Оцінки[[#All],[Оцінка]]),0)","v":{"v":0,"d":"0.0%"}},{"$f":"IFERROR(HLOOKUP(D19,ТаблицяОцінок,2),\"\")","v":"1"},{"$f":"IFERROR(MAX(Оцінки[[#All],[Середній бал за всі курси]]),0)","v":0},"","","","","","","","","","","","","","","","",""]
[null," Найнижча оцінка",null,{"$f":"IFERROR(MIN(Оцінки[[#All],[Оцінка]]),0)","v":{"v":0,"d":"0.0%"}},{"$f":"IFERROR(HLOOKUP(D20,ТаблицяОцінок,2),\"\")","v":"1"},{"$f":"IFERROR(MIN(Оцінки[[#All],[Середній бал за всі курси]]),0)","v":0},"","","","","","","","","","","","","","","","",""]